[Event "*** Titled Tuesday Blitz"]
[Site "Chess.com"]
[Date "2020.04.28"]
[Round "3"]
[White "wadsy27"]
[Black "tylityli"]
[Result "0-1"]
[WhiteElo "2518"]
[BlackElo "2311"]
[TimeControl "180+1"]
[EndTime "10:30:20 PDT"]
[Termination "tylityli won by resignation"]

1. Nf3 {[%clk 0:03:00.9]} 1... d5 {[%clk 0:02:58.2]} 2. g3 {[%clk 0:03:00.5]}
2... c6 {[%clk 0:02:58.8]} 3. Bg2 {[%clk 0:02:59.8]} 3... Nf6 {[%clk 0:02:59.3]}
4. c4 {[%clk 0:02:56.2]} 4... g6 {[%clk 0:03:00.2]} 5. b3 {[%clk 0:02:55.6]}
5... Bg7 {[%clk 0:03:00.3]} 6. Bb2 {[%clk 0:02:55.8]} 6... O-O {[%clk
0:03:00.4]} 7. O-O {[%clk 0:02:56.2]} 7... Nbd7 {[%clk 0:02:57.7]} 8. d3 {[%clk
0:02:54.8]} 8... Re8 {[%clk 0:02:58]} 9. Nc3 {[%clk 0:02:53.5]} 9... e5 {[%clk
0:02:58.1]} 10. cxd5 {[%clk 0:02:42.9]} 10... cxd5 {[%clk 0:02:59]} 11. Rc1
{[%clk 0:02:42.9]} 11... a6 {[%clk 0:02:58]} 12. Ba3 {[%clk 0:02:33.6]} 12... d4
{[%clk 0:02:54.9]} 13. Na4 {[%clk 0:02:29.4]} 13... b5 {[%clk 0:02:44]} 14. Ng5
{[%clk 0:02:04.2]} 14... Ra7 {[%clk 0:02:33.3]} 15. Nc5 {[%clk 0:01:59.1]} 15...
Bf8 {[%clk 0:02:30.9]} 16. Nge4 {[%clk 0:01:45.9]} 16... Nxe4 {[%clk 0:02:28.9]}
17. Bxe4 {[%clk 0:01:44.2]} 17... Nxc5 {[%clk 0:02:19.6]} 18. Bxc5 {[%clk
0:01:42.8]} 18... Rc7 {[%clk 0:02:15]} 19. Bxf8 {[%clk 0:01:39.7]} 19... Rxf8
{[%clk 0:02:15.9]} 20. Qd2 {[%clk 0:01:38.1]} 20... Bh3 {[%clk 0:02:09.4]} 21.
Rxc7 {[%clk 0:01:31.3]} 21... Qxc7 {[%clk 0:02:05]} 22. Rc1 {[%clk 0:01:30.9]}
22... Qd7 {[%clk 0:02:05.5]} 23. Qb4 {[%clk 0:01:19.9]} 23... Rc8 {[%clk
0:02:03.7]} 24. Rxc8+ {[%clk 0:01:08.8]} 24... Qxc8 {[%clk 0:02:04.6]} 25. Qd2
{[%clk 0:01:01.2]} 25... Qc3 {[%clk 0:02:00.4]} 26. Qd1 {[%clk 0:01:01.2]} 26...
Kg7 {[%clk 0:01:56.6]} 27. Bg2 {[%clk 0:00:59]} 27... Bg4 {[%clk 0:01:49.2]} 28.
h3 {[%clk 0:00:55.1]} 28... Be6 {[%clk 0:01:48.7]} 29. Kh2 {[%clk 0:00:41.1]}
29... Qb2 {[%clk 0:01:47.2]} 30. f4 {[%clk 0:00:21.5]} 30... exf4 {[%clk
0:01:44.9]} 31. gxf4 {[%clk 0:00:22.4]} 31... Qxa2 {[%clk 0:01:45]} 32. b4
{[%clk 0:00:22.5]} 32... Qb2 {[%clk 0:01:43.1]} 33. Qe1 {[%clk 0:00:20.1]} 33...
Qc3 {[%clk 0:01:42.6]} 34. Qg3 {[%clk 0:00:13.5]} 34... Qxb4 {[%clk 0:01:41.5]}
35. Be4 {[%clk 0:00:13.5]} 35... Qd6 {[%clk 0:01:39.9]} 36. Kg2 {[%clk
0:00:10.3]} 36... a5 {[%clk 0:01:39.7]} 37. Qg5 {[%clk 0:00:10]} 37... a4 {[%clk
0:01:33.4]} 38. f5 {[%clk 0:00:08.4]} 38... Qe5 {[%clk 0:01:25.4]} 39. f6+
{[%clk 0:00:04.6]} 39... Qxf6 {[%clk 0:01:24.3]} 40. Qxb5 {[%clk 0:00:05.2]}
40... a3 {[%clk 0:01:24.6]} 41. Qa6 {[%clk 0:00:04.3]} 41... a2 {[%clk
0:01:24.4]} 42. Qa7 {[%clk 0:00:03.7]} 42... Qe5 {[%clk 0:01:16.5]} 43. Bf3
{[%clk 0:00:03.7]} 43... h5 {[%clk 0:01:08.9]} 44. Be4 {[%clk 0:00:03.4]} 44...
g5 {[%clk 0:01:06.3]} 45. Bf3 {[%clk 0:00:03.1]} 45... g4 {[%clk 0:00:47.9]} 46.
hxg4 {[%clk 0:00:04]} 46... hxg4 {[%clk 0:00:48.7]} 47. Be4 {[%clk 0:00:04.9]}
47... Qf6 {[%clk 0:00:43.7]} 48. Bb7 {[%clk 0:00:03.5]} 48... Qe5 {[%clk
0:00:39.7]} 49. Be4 {[%clk 0:00:03.5]} 49... Kh6 {[%clk 0:00:37.1]} 50. Qa8
{[%clk 0:00:03.2]} 50... f5 {[%clk 0:00:29.5]} 51. Qf8+ {[%clk 0:00:03.1]} 51...
Qg7 {[%clk 0:00:29.4]} 52. Qe8 {[%clk 0:00:02.7]} 52... fxe4 {[%clk 0:00:27.7]}
53. Qxe6+ {[%clk 0:00:02.9]} 53... Qg6 {[%clk 0:00:27.9]} 54. Qxa2 {[%clk
0:00:02.6]} 54... exd3 {[%clk 0:00:28.2]} 55. exd3 {[%clk 0:00:02.9]} 55... Qxd3
{[%clk 0:00:29]} 56. Qe6+ {[%clk 0:00:03.3]} 56... Qg6 {[%clk 0:00:27.1]} 57.
Qe5 {[%clk 0:00:02.9]} 57... d3 {[%clk 0:00:26.9]} 58. Qh8+ {[%clk 0:00:03]}
58... Kg5 {[%clk 0:00:26]} 59. Qe5+ {[%clk 0:00:03.2]} 59... Qf5 {[%clk
0:00:25.7]} 60. Qe3+ {[%clk 0:00:03.1]} 60... Kf6 {[%clk 0:00:24.2]} 61. Qd4+
{[%clk 0:00:03.1]} 61... Ke6 {[%clk 0:00:23.7]} 62. Qc4+ {[%clk 0:00:03.4]}
62... Qd5+ {[%clk 0:00:23.3]} 63. Qxd5+ {[%clk 0:00:03.4]} 63... Kxd5 {[%clk
0:00:24.2]} 0-1

[Event "*** Titled Tuesday Blitz"]
[Site "Chess.com"]
[Date "2020.04.28"]
[Round "3"]
[White "WhiteCapital80"]
[Black "Volodar_Murzin"]
[Result "1/2-1/2"]
[WhiteElo "2420"]
[BlackElo "2642"]
[TimeControl "180+1"]
[EndTime "10:30:22 PDT"]
[Termination "Game drawn by repetition"]

1. e4 {[%clk 0:03:00.9]} 1... g6 {[%clk 0:02:56.1]} 2. d4 {[%clk 0:03:00.6]}
2... Bg7 {[%clk 0:02:57]} 3. Nc3 {[%clk 0:03:01.2]} 3... d6 {[%clk 0:02:56.2]}
4. f4 {[%clk 0:03:01.2]} 4... Nf6 {[%clk 0:02:56.5]} 5. Nf3 {[%clk 0:03:01.1]}
5... O-O {[%clk 0:02:56.9]} 6. Be3 {[%clk 0:03:01.1]} 6... Na6 {[%clk
0:02:56.6]} 7. e5 {[%clk 0:02:57.7]} 7... Ng4 {[%clk 0:02:54.4]} 8. Bg1 {[%clk
0:02:57.1]} 8... Nh6 {[%clk 0:02:45]} 9. Bxa6 {[%clk 0:02:46.8]} 9... bxa6
{[%clk 0:02:38]} 10. Qe2 {[%clk 0:02:47.3]} 10... Rb8 {[%clk 0:02:28.9]} 11.
O-O-O {[%clk 0:02:47.1]} 11... c6 {[%clk 0:02:26.5]} 12. h3 {[%clk 0:02:43]}
12... Qa5 {[%clk 0:02:14.2]} 13. g4 {[%clk 0:02:30.7]} 13... Qb4 {[%clk
0:02:13.3]} 14. Qd3 {[%clk 0:02:15.1]} 14... Qxb2+ {[%clk 0:02:10]} 15. Kd2
{[%clk 0:02:15.2]} 15... Qa3 {[%clk 0:02:09.9]} 16. Bf2 {[%clk 0:02:05.6]} 16...
c5 {[%clk 0:01:41.2]} 17. Nd5 {[%clk 0:01:54.8]} 17... Qa5+ {[%clk 0:01:40.5]}
18. Qc3 {[%clk 0:01:52.6]} 18... Qxc3+ {[%clk 0:01:34.9]} 19. Kxc3 {[%clk
0:01:49.6]} 19... Bb7 {[%clk 0:01:34.1]} 20. Nxe7+ {[%clk 0:01:49.1]} 20... Kh8
{[%clk 0:01:33.4]} 21. d5 {[%clk 0:01:47.9]} 21... Rfe8 {[%clk 0:01:29.8]} 22.
Nc6 {[%clk 0:01:47.4]} 22... Rbc8 {[%clk 0:01:29]} 23. Rb1 {[%clk 0:01:35.4]}
23... Bxc6 {[%clk 0:01:17.3]} 24. dxc6 {[%clk 0:01:35.4]} 24... Rxc6 {[%clk
0:01:18.2]} 25. Rhd1 {[%clk 0:01:32.2]} 25... dxe5 {[%clk 0:01:17.2]} 26. fxe5
{[%clk 0:01:31]} 26... f6 {[%clk 0:01:14.7]} 27. Rd7 {[%clk 0:01:26]} 27... fxe5
{[%clk 0:01:10.3]} 28. Rbb7 {[%clk 0:01:25.3]} 28... Rg8 {[%clk 0:01:09.7]} 29.
Kc4 {[%clk 0:01:21.8]} 29... Rf6 {[%clk 0:01:07]} 30. g5 {[%clk 0:01:12.6]}
30... Rf4+ {[%clk 0:00:59.3]} 31. Kd5 {[%clk 0:00:54.9]} 31... Nf5 {[%clk
0:00:47.2]} 32. Nxe5 {[%clk 0:00:54.1]} 32... Re8 {[%clk 0:00:45.6]} 33. Nf7+
{[%clk 0:00:49.2]} 33... Kg8 {[%clk 0:00:43.6]} 34. Bxc5 {[%clk 0:00:49.2]}
34... Bc3 {[%clk 0:00:16.7]} 35. Nh6+ {[%clk 0:00:42.2]} 35... Nxh6 {[%clk
0:00:15]} 36. gxh6 {[%clk 0:00:42.6]} 36... Rf5+ {[%clk 0:00:14.2]} 37. Kc6
{[%clk 0:00:40.6]} 37... Rh5 {[%clk 0:00:10.3]} 38. Rxh7 {[%clk 0:00:38.2]}
38... Rxh3 {[%clk 0:00:08.8]} 39. Rbg7+ {[%clk 0:00:33]} 39... Bxg7 {[%clk
0:00:07.9]} 40. Rxg7+ {[%clk 0:00:33.3]} 40... Kh8 {[%clk 0:00:08.3]} 41. Bd4
{[%clk 0:00:34]} 41... Re4 {[%clk 0:00:06.2]} 42. c3 {[%clk 0:00:31.4]} 42...
Rxd4 {[%clk 0:00:05.4]} 43. cxd4 {[%clk 0:00:31]} 43... Rxh6 {[%clk 0:00:04.9]}
44. Rxa7 {[%clk 0:00:30.9]} 44... g5+ {[%clk 0:00:05.3]} 45. Kd5 {[%clk
0:00:30.8]} 45... g4 {[%clk 0:00:05.7]} 46. Ke4 {[%clk 0:00:30.8]} 46... g3
{[%clk 0:00:06.2]} 47. Kf3 {[%clk 0:00:31.2]} 47... Rg6 {[%clk 0:00:06.7]} 48.
Kg2 {[%clk 0:00:31.4]} 48... Kg8 {[%clk 0:00:07.2]} 49. d5 {[%clk 0:00:31.6]}
49... Kf8 {[%clk 0:00:07.6]} 50. a4 {[%clk 0:00:31.5]} 50... Ke8 {[%clk
0:00:06.6]} 51. a5 {[%clk 0:00:31.7]} 51... Kd8 {[%clk 0:00:07]} 52. Rb7 {[%clk
0:00:31.7]} 52... Rd6 {[%clk 0:00:05.8]} 53. Kxg3 {[%clk 0:00:30.3]} 53... Rxd5
{[%clk 0:00:05.7]} 54. Kf4 {[%clk 0:00:30.2]} 54... Rxa5 {[%clk 0:00:06]} 55.
Ke4 {[%clk 0:00:30.8]} 55... Rc5 {[%clk 0:00:06.4]} 56. Kd4 {[%clk 0:00:30.6]}
56... Rc1 {[%clk 0:00:05.3]} 57. Ra7 {[%clk 0:00:30.1]} 57... Rc6 {[%clk
0:00:04.6]} 58. Kd5 {[%clk 0:00:30.3]} 58... Rh6 {[%clk 0:00:04.4]} 59. Kc5
{[%clk 0:00:30.5]} 59... Kc8 {[%clk 0:00:04.7]} 60. Kb4 {[%clk 0:00:29.6]} 60...
Kb8 {[%clk 0:00:04.9]} 61. Rg7 {[%clk 0:00:30]} 61... Rc6 {[%clk 0:00:05.2]} 62.
Ka5 {[%clk 0:00:29.9]} 62... Ka8 {[%clk 0:00:05.2]} 63. Rf7 {[%clk 0:00:30]}
63... Kb8 {[%clk 0:00:05.3]} 64. Rg7 {[%clk 0:00:30.3]} 64... Ka8 {[%clk
0:00:05.7]} 65. Rh7 {[%clk 0:00:30.6]} 65... Kb8 {[%clk 0:00:05.9]} 66. Rg7
{[%clk 0:00:31]} 1/2-1/2

[Event "*** Titled Tuesday Blitz"]
[Site "Chess.com"]
[Date "2020.04.28"]
[Round "3"]
[White "harvsp123"]
[Black "LittlePeasant"]
[Result "0-1"]
[WhiteElo "2524"]
[BlackElo "2756"]
[TimeControl "180+1"]
[EndTime "10:30:23 PDT"]
[Termination "LittlePeasant won by checkmate"]

1. e4 {[%clk 0:03:00.9]} 1... c5 {[%clk 0:02:59.1]} 2. Nf3 {[%clk 0:03:00]} 2...
e6 {[%clk 0:02:59.1]} 3. d4 {[%clk 0:02:56]} 3... cxd4 {[%clk 0:03:00]} 4. Nxd4
{[%clk 0:02:56.5]} 4... Nc6 {[%clk 0:03:00.5]} 5. Nc3 {[%clk 0:02:56.5]} 5...
Qc7 {[%clk 0:03:00.2]} 6. Be3 {[%clk 0:02:57.1]} 6... a6 {[%clk 0:03:00.4]} 7.
Qf3 {[%clk 0:02:56.9]} 7... d6 {[%clk 0:03:00.7]} 8. Nxc6 {[%clk 0:02:40.6]}
8... bxc6 {[%clk 0:02:59.8]} 9. O-O-O {[%clk 0:02:37.5]} 9... Rb8 {[%clk
0:03:00.1]} 10. Qg3 {[%clk 0:02:33]} 10... Nf6 {[%clk 0:02:59.8]} 11. Be2 {[%clk
0:02:26.9]} 11... h5 {[%clk 0:02:51.2]} 12. h4 {[%clk 0:02:18.6]} 12... g6
{[%clk 0:02:48.6]} 13. Bg5 {[%clk 0:01:55.8]} 13... Nd7 {[%clk 0:02:34.7]} 14.
Rhe1 {[%clk 0:01:29.3]} 14... Qb6 {[%clk 0:01:29.3]} 15. b3 {[%clk 0:01:27.8]}
15... Qb4 {[%clk 0:00:57.6]} 16. Nb1 {[%clk 0:00:40.1]} 16... a5 {[%clk
0:00:32.1]} 17. a3 {[%clk 0:00:39.1]} 17... Qc5 {[%clk 0:00:31.7]} 18. Be3
{[%clk 0:00:34.6]} 18... Qe5 {[%clk 0:00:25.5]} 19. Bf4 {[%clk 0:00:34.7]} 19...
Qf6 {[%clk 0:00:04.7]} 20. Bxd6 {[%clk 0:00:31]} 20... Bxd6 {[%clk 0:00:05]} 21.
Qxd6 {[%clk 0:00:30.1]} 21... Qxf2 {[%clk 0:00:05.6]} 22. Nc3 {[%clk 0:00:23.5]}
22... Qxh4 {[%clk 0:00:03]} 23. Rf1 {[%clk 0:00:17.7]} 23... Qe7 {[%clk
0:00:03.4]} 24. Qd4 {[%clk 0:00:15.9]} 24... O-O {[%clk 0:00:03.5]} 25. Kb2
{[%clk 0:00:15.4]} 25... e5 {[%clk 0:00:03.9]} 26. Qe3 {[%clk 0:00:14.9]} 26...
Nc5 {[%clk 0:00:04.5]} 27. Bc4 {[%clk 0:00:14.8]} 27... Be6 {[%clk 0:00:04.6]}
28. Bxe6 {[%clk 0:00:14.4]} 28... Nxe6 {[%clk 0:00:05.5]} 29. g3 {[%clk
0:00:13.7]} 29... Nd4 {[%clk 0:00:05.7]} 30. Ne2 {[%clk 0:00:11.7]} 30... Nxe2
{[%clk 0:00:04.9]} 31. Qxe2 {[%clk 0:00:12.6]} 31... Qe6 {[%clk 0:00:05.6]} 32.
a4 {[%clk 0:00:12]} 32... Rb4 {[%clk 0:00:04.7]} 33. Rd3 {[%clk 0:00:10.9]}
33... Rfb8 {[%clk 0:00:05.2]} 34. Kc1 {[%clk 0:00:11]} 34... Kg7 {[%clk
0:00:05.3]} 35. Rfd1 {[%clk 0:00:11.5]} 35... c5 {[%clk 0:00:05.5]} 36. Rd6
{[%clk 0:00:11.5]} 36... Qg4 {[%clk 0:00:05.8]} 37. Qxg4 {[%clk 0:00:11.3]}
37... hxg4 {[%clk 0:00:06.7]} 38. Rc6 {[%clk 0:00:10.5]} 38... Rxe4 {[%clk
0:00:06.3]} 39. Rxc5 {[%clk 0:00:10.3]} 39... Re3 {[%clk 0:00:06.9]} 40. Rd3
{[%clk 0:00:10.4]} 40... Rxd3 {[%clk 0:00:04.3]} 41. cxd3 {[%clk 0:00:11.3]}
41... Rxb3 {[%clk 0:00:03.5]} 42. Kc2 {[%clk 0:00:12.2]} 42... Rb4 {[%clk
0:00:02.5]} 43. Rxa5 {[%clk 0:00:12.7]} 43... Kf6 {[%clk 0:00:03]} 44. Ra6+
{[%clk 0:00:12.6]} 44... Kf5 {[%clk 0:00:03.2]} 45. Ra7 {[%clk 0:00:13.2]} 45...
Kg5 {[%clk 0:00:03.1]} 46. Kc3 {[%clk 0:00:13.4]} 46... Rd4 {[%clk 0:00:02.9]}
47. Re7 {[%clk 0:00:13.6]} 47... f5 {[%clk 0:00:03.4]} 48. Rxe5 {[%clk
0:00:12.9]} 48... Rxa4 {[%clk 0:00:04.1]} 49. Kd2 {[%clk 0:00:11.9]} 49... Ra2+
{[%clk 0:00:04.5]} 50. Ke3 {[%clk 0:00:12]} 50... Rg2 {[%clk 0:00:05.4]} 51. Kd4
{[%clk 0:00:11.1]} 51... Rxg3 {[%clk 0:00:05.9]} 52. Kc4 {[%clk 0:00:11.8]}
52... Rf3 {[%clk 0:00:06.2]} 53. Re8 {[%clk 0:00:12.7]} 53... Kf4 {[%clk
0:00:06.6]} 54. d4 {[%clk 0:00:13.3]} 54... g3 {[%clk 0:00:07.3]} 55. Rg8 {[%clk
0:00:12.5]} 55... g2 {[%clk 0:00:07.6]} 56. Rxg6 {[%clk 0:00:13.2]} 56... Rg3
{[%clk 0:00:08.3]} 57. Rxg3 {[%clk 0:00:10.3]} 57... Kxg3 {[%clk 0:00:09.2]} 58.
d5 {[%clk 0:00:11.2]} 58... g1=Q {[%clk 0:00:09.9]} 59. d6 {[%clk 0:00:12.1]}
59... Qa7 {[%clk 0:00:10.2]} 60. Kd5 {[%clk 0:00:11.9]} 60... Qd7 {[%clk
0:00:11.1]} 61. Ke5 {[%clk 0:00:12.2]} 61... f4 {[%clk 0:00:11.6]} 62. Ke4
{[%clk 0:00:12.8]} 62... f3 {[%clk 0:00:12.2]} 63. Ke3 {[%clk 0:00:13.1]} 63...
f2 {[%clk 0:00:12.7]} 64. Ke2 {[%clk 0:00:13.4]} 64... Kg2 {[%clk 0:00:13.4]}
65. Ke3 {[%clk 0:00:14]} 65... Qxd6 {[%clk 0:00:13.5]} 66. Ke4 {[%clk
0:00:14.3]} 66... Qe6+ {[%clk 0:00:14]} 67. Kd4 {[%clk 0:00:14.4]} 67... f1=Q
{[%clk 0:00:14.1]} 68. Kc3 {[%clk 0:00:14.8]} 68... Qf3+ {[%clk 0:00:14.4]} 69.
Kb2 {[%clk 0:00:15.5]} 69... Qee2+ {[%clk 0:00:14.6]} 70. Kb1 {[%clk 0:00:16.4]}
70... Qff1# {[%clk 0:00:15.2]} 0-1

[Event "*** Titled Tuesday Blitz"]
[Site "Chess.com"]
[Date "2020.04.28"]
[Round "3"]
[White "barbara25"]
[Black "Aleksandar-Topalov"]
[Result "0-1"]
[WhiteElo "2268"]
[BlackElo "2498"]
[TimeControl "180+1"]
[EndTime "10:30:23 PDT"]
[Termination "Aleksandar-Topalov won by resignation"]

1. e4 {[%clk 0:03:00.9]} 1... e6 {[%clk 0:02:59.7]} 2. d4 {[%clk 0:03:00.1]}
2... d5 {[%clk 0:02:59.6]} 3. Nc3 {[%clk 0:03:00.1]} 3... Bb4 {[%clk 0:02:59]}
4. e5 {[%clk 0:02:55.2]} 4... Qd7 {[%clk 0:02:57.9]} 5. a3 {[%clk 0:02:53.8]}
5... Bxc3+ {[%clk 0:02:55.4]} 6. bxc3 {[%clk 0:02:53]} 6... b6 {[%clk
0:02:56.1]} 7. Nf3 {[%clk 0:02:46.5]} 7... Ba6 {[%clk 0:02:55.5]} 8. Bxa6 {[%clk
0:02:45.7]} 8... Nxa6 {[%clk 0:02:55.5]} 9. Qd3 {[%clk 0:02:45.6]} 9... Nb8
{[%clk 0:02:55.7]} 10. O-O {[%clk 0:02:45]} 10... Nc6 {[%clk 0:02:55.8]} 11. Be3
{[%clk 0:02:44.4]} 11... Na5 {[%clk 0:02:55.9]} 12. Nd2 {[%clk 0:02:43.4]} 12...
Qc6 {[%clk 0:02:55.7]} 13. f4 {[%clk 0:02:41]} 13... Ne7 {[%clk 0:02:55.9]} 14.
Kh1 {[%clk 0:02:39.6]} 14... h5 {[%clk 0:02:52.6]} 15. a4 {[%clk 0:02:37.9]}
15... Nf5 {[%clk 0:02:52.4]} 16. Bf2 {[%clk 0:02:33]} 16... Nc4 {[%clk 0:02:52]}
17. Nxc4 {[%clk 0:02:32.6]} 17... dxc4 {[%clk 0:02:52]} 18. Qe2 {[%clk
0:02:22.1]} 18... a5 {[%clk 0:02:50.5]} 19. Rad1 {[%clk 0:02:15.7]} 19... Qd5
{[%clk 0:02:49.6]} 20. Qf3 {[%clk 0:02:14.5]} 20... Qxf3 {[%clk 0:02:45]} 21.
gxf3 {[%clk 0:02:14.2]} 21... Rd8 {[%clk 0:02:45.5]} 22. Rd2 {[%clk 0:02:07.2]}
22... Rd5 {[%clk 0:02:45.1]} 23. Be1 {[%clk 0:02:04]} 23... h4 {[%clk
0:02:43.5]} 24. Bf2 {[%clk 0:02:04.1]} 24... Kd7 {[%clk 0:02:36.2]} 25. h3
{[%clk 0:02:03.2]} 25... Kc6 {[%clk 0:02:32.6]} 26. Rdd1 {[%clk 0:02:02.7]}
26... Rb8 {[%clk 0:02:20.2]} 27. Ra1 {[%clk 0:01:59.6]} 27... Kd7 {[%clk
0:01:58.4]} 28. Kg2 {[%clk 0:01:58.7]} 28... c5 {[%clk 0:01:44.6]} 29. Rfd1
{[%clk 0:01:44.7]} 29... Kc6 {[%clk 0:01:37.3]} 30. Kf1 {[%clk 0:01:43.8]} 30...
Rbd8 {[%clk 0:01:37.3]} 31. Rab1 {[%clk 0:01:26.4]} 31... cxd4 {[%clk
0:01:33.1]} 32. cxd4 {[%clk 0:01:23.4]} 32... Nxd4 {[%clk 0:01:33.1]} 33. Rb2
{[%clk 0:01:03.5]} 33... g6 {[%clk 0:01:14]} 34. Rdb1 {[%clk 0:00:58.2]} 34...
Rb8 {[%clk 0:01:05.3]} 35. Kg2 {[%clk 0:00:31.2]} 35... c3 {[%clk 0:00:48.5]}
36. Ra2 {[%clk 0:00:28.7]} 36... Ne2 {[%clk 0:00:47.7]} 37. Be3 {[%clk
0:00:20.8]} 37... b5 {[%clk 0:00:37.5]} 38. axb5+ {[%clk 0:00:19.8]} 38... Rbxb5
{[%clk 0:00:37.7]} 39. Re1 {[%clk 0:00:18.6]} 39... Ng3 {[%clk 0:00:37]} 40. Ra3
{[%clk 0:00:17.9]} 40... Nf5 {[%clk 0:00:30.9]} 41. Rxc3+ {[%clk 0:00:17.4]}
41... Kb7 {[%clk 0:00:31.4]} 42. Bc1 {[%clk 0:00:16.8]} 42... Rb1 {[%clk
0:00:25.9]} 43. Rb3+ {[%clk 0:00:15.9]} 43... Rxb3 {[%clk 0:00:25.1]} 44. cxb3
{[%clk 0:00:16.2]} 44... Rd3 {[%clk 0:00:25.4]} 45. Ba3 {[%clk 0:00:11.8]} 45...
Rxb3 {[%clk 0:00:24.7]} 46. Bf8 {[%clk 0:00:12.3]} 46... Rb2+ {[%clk 0:00:23.5]}
47. Kg1 {[%clk 0:00:11.4]} 47... Nd4 {[%clk 0:00:22]} 48. Rd1 {[%clk 0:00:08.8]}
48... Ne2+ {[%clk 0:00:20.2]} 49. Kf1 {[%clk 0:00:07.9]} 49... Ng3+ {[%clk
0:00:19.6]} 50. Kg1 {[%clk 0:00:07.9]} 50... Kc6 {[%clk 0:00:19.2]} 51. Rd6+
{[%clk 0:00:07.1]} 51... Kc7 {[%clk 0:00:18.6]} 52. Rd1 {[%clk 0:00:06.2]} 52...
Ne2+ {[%clk 0:00:17.5]} 53. Kf1 {[%clk 0:00:05.6]} 53... Nxf4 {[%clk 0:00:17.6]}
54. Rc1+ {[%clk 0:00:05.2]} 54... Kd7 {[%clk 0:00:17.3]} 55. Rd1+ {[%clk
0:00:05.4]} 55... Kc8 {[%clk 0:00:17.2]} 56. Be7 {[%clk 0:00:05.4]} 56... Nxh3
{[%clk 0:00:15.5]} 57. Bxh4 {[%clk 0:00:05.3]} 57... Nf4 {[%clk 0:00:15.9]} 58.
Bg5 {[%clk 0:00:05]} 58... Nd5 {[%clk 0:00:14.4]} 59. f4 {[%clk 0:00:03.4]}
59... a4 {[%clk 0:00:13.9]} 60. Rc1+ {[%clk 0:00:03.9]} 60... Kb7 {[%clk
0:00:13.3]} 61. Bh6 {[%clk 0:00:04.2]} 61... a3 {[%clk 0:00:13.3]} 62. Ke1
{[%clk 0:00:03.3]} 62... a2 {[%clk 0:00:13.7]} 0-1

[Event "*** Titled Tuesday Blitz"]
[Site "Chess.com"]
[Date "2020.04.28"]
[Round "3"]
[White "Marty435"]
[Black "PavlovDanila"]
[Result "1-0"]
[WhiteElo "2538"]
[BlackElo "2739"]
[TimeControl "180+1"]
[EndTime "10:30:30 PDT"]
[Termination "Marty435 won by checkmate"]

1. e4 {[%clk 0:03:00.9]} 1... e6 {[%clk 0:03:00.1]} 2. d4 {[%clk 0:03:00.9]}
2... d5 {[%clk 0:03:00.6]} 3. Nc3 {[%clk 0:03:01.6]} 3... Nf6 {[%clk 0:03:00.4]}
4. e5 {[%clk 0:03:02]} 4... Nfd7 {[%clk 0:03:00.6]} 5. f4 {[%clk 0:03:02.7]}
5... c5 {[%clk 0:03:01.1]} 6. Nf3 {[%clk 0:03:03.5]} 6... Nc6 {[%clk 0:03:01.6]}
7. Be3 {[%clk 0:03:03.8]} 7... cxd4 {[%clk 0:03:02.1]} 8. Nxd4 {[%clk 0:03:04]}
8... Bc5 {[%clk 0:03:02.6]} 9. Qd2 {[%clk 0:03:04.3]} 9... O-O {[%clk
0:03:00.7]} 10. O-O-O {[%clk 0:03:00.6]} 10... a6 {[%clk 0:03:00.4]} 11. h4
{[%clk 0:02:55]} 11... Nxd4 {[%clk 0:02:59]} 12. Bxd4 {[%clk 0:02:55.9]} 12...
b5 {[%clk 0:02:59.5]} 13. h5 {[%clk 0:02:43.5]} 13... Qa5 {[%clk 0:02:49.2]} 14.
Kb1 {[%clk 0:02:37.9]} 14... b4 {[%clk 0:02:36.1]} 15. Ne2 {[%clk 0:02:33.9]}
15... Bb7 {[%clk 0:02:34.1]} 16. Rh3 {[%clk 0:02:11.2]} 16... Bxd4 {[%clk
0:02:23.3]} 17. Nxd4 {[%clk 0:02:10.9]} 17... Nc5 {[%clk 0:02:23.8]} 18. a3
{[%clk 0:02:07.2]} 18... Ne4 {[%clk 0:02:18.1]} 19. Qe1 {[%clk 0:01:59.6]} 19...
Rab8 {[%clk 0:02:12.6]} 20. axb4 {[%clk 0:01:54.7]} 20... Qb6 {[%clk 0:01:48.3]}
21. c3 {[%clk 0:01:39.8]} 21... Bc6 {[%clk 0:01:40.6]} 22. Bd3 {[%clk
0:01:36.3]} 22... a5 {[%clk 0:01:36.7]} 23. b5 {[%clk 0:01:29.7]} 23... Bd7
{[%clk 0:01:30]} 24. h6 {[%clk 0:01:29]} 24... g6 {[%clk 0:01:29.7]} 25. Qh4
{[%clk 0:01:28.5]} 25... Qd8 {[%clk 0:00:54]} 26. Bxe4 {[%clk 0:01:24.7]} 26...
Qxh4 {[%clk 0:00:51.1]} 27. Rxh4 {[%clk 0:01:25.6]} 27... dxe4 {[%clk
0:00:51.8]} 28. Nc6 {[%clk 0:01:11.7]} 28... Rb7 {[%clk 0:00:30.8]} 29. Rhh1
{[%clk 0:01:05.7]} 29... a4 {[%clk 0:00:29.2]} 30. Ka2 {[%clk 0:00:58.6]} 30...
Be8 {[%clk 0:00:21.8]} 31. Rd8 {[%clk 0:00:51.9]} 31... Bxc6 {[%clk 0:00:18.7]}
32. Rxf8+ {[%clk 0:00:36]} 32... Kxf8 {[%clk 0:00:19.6]} 33. bxc6 {[%clk
0:00:36.8]} 33... Rc7 {[%clk 0:00:19.2]} 34. Re1 {[%clk 0:00:36.6]} 34... Rxc6
{[%clk 0:00:18.2]} 35. Rxe4 {[%clk 0:00:37]} 35... f6 {[%clk 0:00:17.7]} 36.
exf6 {[%clk 0:00:36.4]} 36... Kf7 {[%clk 0:00:17.7]} 37. Ka3 {[%clk 0:00:35]}
37... Kxf6 {[%clk 0:00:17.5]} 38. Rxa4 {[%clk 0:00:33.7]} 38... Rc7 {[%clk
0:00:11.1]} 39. Ra5 {[%clk 0:00:28.7]} 39... Rc4 {[%clk 0:00:08.9]} 40. g3
{[%clk 0:00:27.7]} 40... Rc7 {[%clk 0:00:08.5]} 41. Kb3 {[%clk 0:00:27.1]} 41...
Rb7+ {[%clk 0:00:07]} 42. Kc2 {[%clk 0:00:27.6]} 42... Rc7 {[%clk 0:00:07.5]}
43. b4 {[%clk 0:00:27.9]} 43... Rb7 {[%clk 0:00:07.1]} 44. Kb3 {[%clk
0:00:26.8]} 44... Rd7 {[%clk 0:00:07.3]} 45. Rc5 {[%clk 0:00:25.1]} 45... Rd1
{[%clk 0:00:07.4]} 46. b5 {[%clk 0:00:24]} 46... Rh1 {[%clk 0:00:07.4]} 47. Kc4
{[%clk 0:00:19.4]} 47... Rb1 {[%clk 0:00:07.4]} 48. Rc7 {[%clk 0:00:18.1]} 48...
e5 {[%clk 0:00:06.8]} 49. fxe5+ {[%clk 0:00:16.3]} 49... Kxe5 {[%clk 0:00:07.7]}
50. Rxh7 {[%clk 0:00:16.9]} 50... Kf5 {[%clk 0:00:07.9]} 51. Rf7+ {[%clk
0:00:16.1]} 51... Ke6 {[%clk 0:00:07.7]} 52. h7 {[%clk 0:00:15.6]} 52... Rh1
{[%clk 0:00:08.3]} 53. Rg7 {[%clk 0:00:15.4]} 53... Kd6 {[%clk 0:00:08.9]} 54.
Rxg6+ {[%clk 0:00:13.4]} 54... Ke5 {[%clk 0:00:09.4]} 55. Rg7 {[%clk 0:00:10.8]}
55... Kf6 {[%clk 0:00:09.8]} 56. Rc7 {[%clk 0:00:10.9]} 56... Ke6 {[%clk
0:00:10.7]} 57. b6 {[%clk 0:00:11.4]} 57... Kd6 {[%clk 0:00:10.9]} 58. Rg7
{[%clk 0:00:10.8]} 58... Kc6 {[%clk 0:00:11.2]} 59. Rg6+ {[%clk 0:00:10.7]}
59... Kb7 {[%clk 0:00:11.4]} 60. Kb5 {[%clk 0:00:08.7]} 60... Rxh7 {[%clk
0:00:11.2]} 61. c4 {[%clk 0:00:08.7]} 61... Rh5+ {[%clk 0:00:11]} 62. c5 {[%clk
0:00:09.1]} 62... Rh8 {[%clk 0:00:10.5]} 63. c6+ {[%clk 0:00:08.9]} 63... Kb8
{[%clk 0:00:11]} 64. Ka6 {[%clk 0:00:08.6]} 64... Ka8 {[%clk 0:00:09.4]} 65. Rg7
{[%clk 0:00:07.5]} 65... Kb8 {[%clk 0:00:08.8]} 66. c7+ {[%clk 0:00:05.5]} 66...
Kc8 {[%clk 0:00:08]} 67. b7# {[%clk 0:00:06.4]} 1-0